[Event "*** Titled Tuesday Blitz"]
[Site "Chess.com"]
[Date "2021.02.02"]
[Round "8"]
[White "GiorgianBarbosa"]
[Black "Agoking701"]
[Result "1-0"]
[WhiteElo "2493"]
[BlackElo "2315"]
[TimeControl "180+1"]
[EndTime "11:30:48 PST"]
[Termination "GiorgianBarbosa won on time"]

1. d4 {[%clk 0:03:00.5]} 1... d5 {[%clk 0:02:58.1]} 2. c4 {[%clk 0:02:59]} 2...
dxc4 {[%clk 0:02:57.6]} 3. e3 {[%clk 0:02:58.3]} 3... c5 {[%clk 0:02:55.9]} 4.
Bxc4 {[%clk 0:02:58.6]} 4... cxd4 {[%clk 0:02:53.3]} 5. exd4 {[%clk 0:02:59.5]}
5... Nf6 {[%clk 0:02:52.2]} 6. Nf3 {[%clk 0:02:59.6]} 6... Bg4 {[%clk
0:02:48.8]} 7. Bxf7+ {[%clk 0:02:34.1]} 7... Kxf7 {[%clk 0:02:47.7]} 8. Ne5+
{[%clk 0:02:34.6]} 8... Kg8 {[%clk 0:02:46.7]} 9. Nxg4 {[%clk 0:02:30.4]} 9...
e6 {[%clk 0:02:27.1]} 10. O-O {[%clk 0:02:25.2]} 10... Nc6 {[%clk 0:02:25.2]}
11. Nxf6+ {[%clk 0:02:21.5]} 11... Qxf6 {[%clk 0:02:23.7]} 12. d5 {[%clk
0:02:19.5]} 12... Rd8 {[%clk 0:02:20.6]} 13. Qb3 {[%clk 0:02:09.5]} 13... exd5
{[%clk 0:02:13.6]} 14. Nc3 {[%clk 0:02:08.6]} 14... Na5 {[%clk 0:02:08.4]} 15.
Qb5 {[%clk 0:02:04.6]} 15... Qb6 {[%clk 0:02:07.6]} 16. Qe2 {[%clk 0:01:54.7]}
16... Bb4 {[%clk 0:01:57.9]} 17. Bg5 {[%clk 0:01:51.9]} 17... Kf7 {[%clk
0:01:35.6]} 18. Bxd8 {[%clk 0:01:48.7]} 18... Rxd8 {[%clk 0:01:36.5]} 19. Qf3+
{[%clk 0:01:46]} 19... Qf6 {[%clk 0:01:31.1]} 20. Qxf6+ {[%clk 0:01:43.5]} 20...
gxf6 {[%clk 0:01:32]} 21. Rad1 {[%clk 0:01:42]} 21... d4 {[%clk 0:01:26.9]} 22.
Ne2 {[%clk 0:01:38.3]} 22... d3 {[%clk 0:01:08.1]} 23. Nc1 {[%clk 0:01:24.2]}
23... d2 {[%clk 0:01:03.2]} 24. Nb3 {[%clk 0:01:23.7]} 24... Nc4 {[%clk
0:00:45.9]} 25. a3 {[%clk 0:01:20.8]} 25... Rd3 {[%clk 0:00:27.9]} 26. Na1
{[%clk 0:01:00.7]} 26... Bf8 {[%clk 0:00:27.4]} 27. b3 {[%clk 0:00:45.8]} 27...
Nb2 {[%clk 0:00:25.8]} 28. Nc2 {[%clk 0:00:21]} 28... Nxd1 {[%clk 0:00:20.5]}
29. Rxd1 {[%clk 0:00:21.9]} 29... Bh6 {[%clk 0:00:19.7]} 30. g3 {[%clk
0:00:19.6]} 30... Rxb3 {[%clk 0:00:19.4]} 31. f4 {[%clk 0:00:19.8]} 31... Rd3
{[%clk 0:00:17.6]} 32. Kf1 {[%clk 0:00:18.7]} 32... Bf8 {[%clk 0:00:14.7]} 33.
Ke2 {[%clk 0:00:18.6]} 33... Rb3 {[%clk 0:00:13.5]} 34. Rxd2 {[%clk 0:00:18.3]}
34... Bxa3 {[%clk 0:00:12.5]} 35. Rd7+ {[%clk 0:00:16.1]} 35... Kg6 {[%clk
0:00:12.9]} 36. Ne3 {[%clk 0:00:13.1]} 36... Bc5 {[%clk 0:00:09.9]} 37. f5+
{[%clk 0:00:10.6]} 37... Kh6 {[%clk 0:00:09.7]} 38. Ng4+ {[%clk 0:00:08.9]}
38... Kg5 {[%clk 0:00:06.1]} 39. Rg7+ {[%clk 0:00:07]} 39... Kh5 {[%clk
0:00:06.2]} 40. Nxf6+ {[%clk 0:00:06.7]} 40... Kh6 {[%clk 0:00:06.1]} 41. Rxh7+
{[%clk 0:00:05.6]} 41... Kg5 {[%clk 0:00:06.7]} 42. Ne4+ {[%clk 0:00:05.5]}
42... Kxf5 {[%clk 0:00:05.2]} 43. Nxc5 {[%clk 0:00:06.4]} 43... Rb2+ {[%clk
0:00:05.4]} 44. Kf3 {[%clk 0:00:06.1]} 44... Rc2 {[%clk 0:00:05]} 45. Nd3 {[%clk
0:00:06]} 45... Rc3 {[%clk 0:00:05.3]} 46. Ke3 {[%clk 0:00:06.3]} 46... a5
{[%clk 0:00:06.2]} 47. Rh5+ {[%clk 0:00:06.5]} 47... Kg4 {[%clk 0:00:05.7]} 48.
Rxa5 {[%clk 0:00:07.4]} 48... Rb3 {[%clk 0:00:05.6]} 49. Ra4+ {[%clk 0:00:07.3]}
49... Kh3 {[%clk 0:00:04.7]} 50. Rh4+ {[%clk 0:00:07.8]} 50... Kg2 {[%clk
0:00:05.1]} 51. g4 {[%clk 0:00:08.2]} 51... b5 {[%clk 0:00:04.6]} 52. g5 {[%clk
0:00:08.5]} 52... Rb1 {[%clk 0:00:03.7]} 53. g6 {[%clk 0:00:08.6]} 53... Ra1
{[%clk 0:00:03.2]} 54. g7 {[%clk 0:00:08.7]} 54... Ra8 {[%clk 0:00:04.1]} 55.
Rg4+ {[%clk 0:00:08.7]} 55... Kh1 {[%clk 0:00:03.8]} 56. g8=Q {[%clk 0:00:09.6]}
1-0

[Event "*** Titled Tuesday Blitz"]
[Site "Chess.com"]
[Date "2021.02.02"]
[Round "8"]
[White "serhanberat_ozdemir"]
[Black "SirStrateg"]
[Result "1-0"]
[WhiteElo "2457"]
[BlackElo "2653"]
[TimeControl "180+1"]
[EndTime "11:30:49 PST"]
[Termination "serhanberat_ozdemir won by resignation"]

1. e4 {[%clk 0:03:00.9]} 1... e6 {[%clk 0:03:00]} 2. d4 {[%clk 0:03:00.3]} 2...
d5 {[%clk 0:03:00.5]} 3. Nd2 {[%clk 0:03:01]} 3... Nc6 {[%clk 0:03:00.4]} 4.
Ngf3 {[%clk 0:03:00.7]} 4... Nf6 {[%clk 0:03:00.4]} 5. Bd3 {[%clk 0:02:56.1]}
5... Nb4 {[%clk 0:02:59.4]} 6. Qe2 {[%clk 0:02:29.1]} 6... Nxd3+ {[%clk
0:02:56.3]} 7. Qxd3 {[%clk 0:02:30]} 7... Be7 {[%clk 0:02:53.1]} 8. O-O {[%clk
0:02:29.8]} 8... b6 {[%clk 0:02:51.2]} 9. e5 {[%clk 0:02:22.7]} 9... Nd7 {[%clk
0:02:50.4]} 10. c3 {[%clk 0:02:16.9]} 10... a5 {[%clk 0:02:49.9]} 11. Re1 {[%clk
0:02:17.4]} 11... Ba6 {[%clk 0:02:50]} 12. Qe3 {[%clk 0:02:17.7]} 12... c5
{[%clk 0:02:48.8]} 13. h3 {[%clk 0:02:18.2]} 13... cxd4 {[%clk 0:02:43.8]} 14.
cxd4 {[%clk 0:02:19.1]} 14... Rc8 {[%clk 0:02:41.5]} 15. Nh2 {[%clk 0:02:18]}
15... Qc7 {[%clk 0:02:33.2]} 16. Qg3 {[%clk 0:02:12.1]} 16... O-O {[%clk
0:02:32.3]} 17. Ndf3 {[%clk 0:02:10.4]} 17... Qc2 {[%clk 0:02:31.1]} 18. Ng4
{[%clk 0:02:04.5]} 18... Qg6 {[%clk 0:02:27.1]} 19. Bf4 {[%clk 0:01:50.9]} 19...
Rc2 {[%clk 0:02:21]} 20. Rac1 {[%clk 0:01:46.6]} 20... Rfc8 {[%clk 0:02:17.5]}
21. Rxc2 {[%clk 0:01:47.1]} 21... Rxc2 {[%clk 0:02:17.7]} 22. Rc1 {[%clk
0:01:32.9]} 22... Rxc1+ {[%clk 0:02:12.9]} 23. Bxc1 {[%clk 0:01:33.8]} 23... h5
{[%clk 0:02:04.8]} 24. Ngh2 {[%clk 0:01:14.4]} 24... Qd3 {[%clk 0:01:40]} 25.
Ne1 {[%clk 0:00:53.2]} 25... Qxg3 {[%clk 0:01:30.2]} 26. fxg3 {[%clk 0:00:48.9]}
26... f6 {[%clk 0:01:30.6]} 27. exf6 {[%clk 0:00:45.7]} 27... gxf6 {[%clk
0:01:27.6]} 28. g4 {[%clk 0:00:43.2]} 28... hxg4 {[%clk 0:01:20.3]} 29. Nxg4
{[%clk 0:00:44.1]} 29... Be2 {[%clk 0:01:15.1]} 30. Kf2 {[%clk 0:00:41.4]} 30...
Bxg4 {[%clk 0:01:14.5]} 31. hxg4 {[%clk 0:00:42.3]} 31... a4 {[%clk 0:01:11.1]}
32. b3 {[%clk 0:00:40.3]} 32... b5 {[%clk 0:01:11]} 33. Nd3 {[%clk 0:00:37.9]}
33... Kf7 {[%clk 0:01:08.8]} 34. Bf4 {[%clk 0:00:36.2]} 34... Kg6 {[%clk
0:00:58.3]} 35. bxa4 {[%clk 0:00:34.5]} 35... bxa4 {[%clk 0:00:58.1]} 36. Bc7
{[%clk 0:00:34]} 36... Ba3 {[%clk 0:00:53.8]} 37. Kf3 {[%clk 0:00:31.6]} 37...
Kg5 {[%clk 0:00:52.8]} 38. Nf4 {[%clk 0:00:30]} 38... Nf8 {[%clk 0:00:46.7]} 39.
Bd8 {[%clk 0:00:27.5]} 39... Bd6 {[%clk 0:00:40]} 40. g3 {[%clk 0:00:25.7]}
40... Bxf4 {[%clk 0:00:32.2]} 41. gxf4+ {[%clk 0:00:26.6]} 41... Kg6 {[%clk
0:00:32.1]} 42. Ke3 {[%clk 0:00:27.5]} 42... Nd7 {[%clk 0:00:31.9]} 43. Bc7
{[%clk 0:00:23.7]} 43... Kf7 {[%clk 0:00:09.3]} 44. f5 {[%clk 0:00:23.9]} 44...
e5 {[%clk 0:00:08.3]} 45. Kd3 {[%clk 0:00:22]} 45... e4+ {[%clk 0:00:06.4]} 46.
Kc2 {[%clk 0:00:21.5]} 46... Ke7 {[%clk 0:00:06]} 47. Kc3 {[%clk 0:00:20]} 47...
Nf8 {[%clk 0:00:06.4]} 48. Bf4 {[%clk 0:00:16.2]} 48... Kd7 {[%clk 0:00:06.6]}
49. Kb4 {[%clk 0:00:15.7]} 49... Kc6 {[%clk 0:00:07]} 50. Kxa4 {[%clk
0:00:16.1]} 50... Nd7 {[%clk 0:00:07.6]} 51. Kb4 {[%clk 0:00:14.9]} 51... Nb6
{[%clk 0:00:08.1]} 52. g5 {[%clk 0:00:12.4]} 52... fxg5 {[%clk 0:00:08.1]} 53.
Bxg5 {[%clk 0:00:13.3]} 53... Nc4 {[%clk 0:00:06.5]} 54. f6 {[%clk 0:00:09]}
54... Kd6 {[%clk 0:00:06.8]} 55. f7 {[%clk 0:00:09]} 1-0

[Event "*** Titled Tuesday Blitz"]
[Site "Chess.com"]
[Date "2021.02.02"]
[Round "8"]
[White "Savagelittlemole"]
[Black "MPGM"]
[Result "0-1"]
[WhiteElo "2456"]
[BlackElo "2598"]
[TimeControl "180+1"]
[EndTime "11:30:49 PST"]
[Termination "MPGM won on time"]

1. e4 {[%clk 0:03:00.5]} 1... e5 {[%clk 0:02:58.9]} 2. Nf3 {[%clk 0:03:00.1]}
2... Nc6 {[%clk 0:02:58.8]} 3. Bb5 {[%clk 0:02:57.7]} 3... a6 {[%clk 0:02:59]}
4. Ba4 {[%clk 0:02:56.8]} 4... Nf6 {[%clk 0:02:59.1]} 5. O-O {[%clk 0:02:56.2]}
5... Nxe4 {[%clk 0:02:58.7]} 6. d4 {[%clk 0:02:55.4]} 6... b5 {[%clk 0:02:57.4]}
7. Bb3 {[%clk 0:02:55.1]} 7... d5 {[%clk 0:02:57.9]} 8. dxe5 {[%clk 0:02:54.2]}
8... Be6 {[%clk 0:02:56.8]} 9. c3 {[%clk 0:02:54.1]} 9... Be7 {[%clk 0:02:56.4]}
10. Qe2 {[%clk 0:02:50.3]} 10... O-O {[%clk 0:02:53.1]} 11. Rd1 {[%clk 0:02:50]}
11... Qd7 {[%clk 0:02:15.5]} 12. Bf4 {[%clk 0:02:42.8]} 12... Na5 {[%clk
0:01:41.7]} 13. Bc2 {[%clk 0:02:41.4]} 13... f5 {[%clk 0:01:42]} 14. exf6 {[%clk
0:02:38.1]} 14... Nxf6 {[%clk 0:01:42.4]} 15. Ne5 {[%clk 0:02:33.2]} 15... Qc8
{[%clk 0:01:36.8]} 16. b4 {[%clk 0:02:14.4]} 16... Nc4 {[%clk 0:01:30.6]} 17.
Nxc4 {[%clk 0:02:14.3]} 17... dxc4 {[%clk 0:01:21.1]} 18. Re1 {[%clk 0:02:11.2]}
18... Nd5 {[%clk 0:01:20.4]} 19. Qxe6+ {[%clk 0:01:44.2]} 19... Qxe6 {[%clk
0:01:19.6]} 20. Rxe6 {[%clk 0:01:45.1]} 20... Rxf4 {[%clk 0:01:19.3]} 21. Be4
{[%clk 0:01:39.2]} 21... Rd8 {[%clk 0:00:58.7]} 22. g3 {[%clk 0:01:23.8]} 22...
Rf7 {[%clk 0:00:30.2]} 23. a4 {[%clk 0:00:56.3]} 23... Nf6 {[%clk 0:00:18.9]}
24. axb5 {[%clk 0:00:48.9]} 24... Nxe4 {[%clk 0:00:16.7]} 25. Rxe4 {[%clk
0:00:48.2]} 25... axb5 {[%clk 0:00:16.7]} 26. Na3 {[%clk 0:00:45.7]} 26... c6
{[%clk 0:00:13.6]} 27. Nc2 {[%clk 0:00:45.1]} 27... Bf6 {[%clk 0:00:12.6]} 28.
Re3 {[%clk 0:00:32.3]} 28... Rfd7 {[%clk 0:00:08.3]} 29. Ne1 {[%clk 0:00:29.3]}
29... Rd1 {[%clk 0:00:06.6]} 30. Rxd1 {[%clk 0:00:29.1]} 30... Rxd1 {[%clk
0:00:06]} 31. Kf1 {[%clk 0:00:29.6]} 31... Rc1 {[%clk 0:00:05.4]} 32. Ke2 {[%clk
0:00:24]} 32... Bxc3 {[%clk 0:00:05.1]} 33. Nf3 {[%clk 0:00:21.1]} 33... Bxb4
{[%clk 0:00:04.3]} 34. Nd4 {[%clk 0:00:14.7]} 34... Bc5 {[%clk 0:00:03.3]} 35.
Re4 {[%clk 0:00:02.6]} 35... Bxd4 {[%clk 0:00:03.1]} 36. Rxd4 {[%clk 0:00:03.5]}
36... Rc2+ {[%clk 0:00:02.9]} 37. Kd1 {[%clk 0:00:02.5]} 37... Rxf2 {[%clk
0:00:02.6]} 38. Rd6 {[%clk 0:00:03.2]} 38... Rxh2 {[%clk 0:00:02.5]} 39. Rxc6
{[%clk 0:00:03.7]} 39... Rb2 {[%clk 0:00:03.2]} 40. Rb6 {[%clk 0:00:03.5]} 40...
c3 {[%clk 0:00:03.4]} 41. Kc1 {[%clk 0:00:04]} 41... b4 {[%clk 0:00:03.5]} 42.
Rb7 {[%clk 0:00:03.9]} 42... h5 {[%clk 0:00:03.5]} 43. Rb5 {[%clk 0:00:03.4]}
43... g6 {[%clk 0:00:03.4]} 44. Rb7 {[%clk 0:00:03.5]} 44... b3 {[%clk
0:00:02.8]} 45. Rc7 {[%clk 0:00:03.7]} 45... Rc2+ {[%clk 0:00:03.3]} 46. Kd1
{[%clk 0:00:03.1]} 46... g5 {[%clk 0:00:03.2]} 47. Rb7 {[%clk 0:00:01.9]} 47...
Rd2+ {[%clk 0:00:03.6]} 0-1

[Event "*** Titled Tuesday Blitz"]
[Site "Chess.com"]
[Date "2021.02.02"]
[Round "8"]
[White "GumisGLHF"]
[Black "Grieve72"]
[Result "0-1"]
[WhiteElo "2354"]
[BlackElo "2500"]
[TimeControl "180+1"]
[EndTime "11:30:52 PST"]
[Termination "Grieve72 won by resignation"]

1. c4 {[%clk 0:03:00.9]} 1... g6 {[%clk 0:02:58.1]} 2. Nf3 {[%clk 0:03:01.5]}
2... Bg7 {[%clk 0:02:58]} 3. e3 {[%clk 0:03:02]} 3... c5 {[%clk 0:02:55]} 4. Nc3
{[%clk 0:02:57.7]} 4... Nf6 {[%clk 0:02:52]} 5. Be2 {[%clk 0:02:55.8]} 5... O-O
{[%clk 0:02:50.4]} 6. O-O {[%clk 0:02:55.9]} 6... Nc6 {[%clk 0:02:50.4]} 7. a3
{[%clk 0:02:55.3]} 7... d5 {[%clk 0:02:36.3]} 8. cxd5 {[%clk 0:02:55.3]} 8...
Nxd5 {[%clk 0:02:36.8]} 9. Qb3 {[%clk 0:02:54.7]} 9... Nb6 {[%clk 0:02:27.5]}
10. Ne4 {[%clk 0:02:45.3]} 10... c4 {[%clk 0:02:14.1]} 11. Qc2 {[%clk
0:02:42.1]} 11... Na5 {[%clk 0:02:03]} 12. d3 {[%clk 0:02:30.9]} 12... Be6
{[%clk 0:01:30.6]} 13. d4 {[%clk 0:02:18.8]} 13... Rc8 {[%clk 0:01:17.2]} 14.
Nc5 {[%clk 0:02:07]} 14... Bd5 {[%clk 0:00:51]} 15. e4 {[%clk 0:02:01.9]} 15...
Bc6 {[%clk 0:00:50.7]} 16. Be3 {[%clk 0:02:01.9]} 16... e5 {[%clk 0:00:25.9]}
17. d5 {[%clk 0:01:50.1]} 17... Be8 {[%clk 0:00:24.8]} 18. Rad1 {[%clk
0:01:31.2]} 18... Qd6 {[%clk 0:00:20.4]} 19. Qd2 {[%clk 0:00:53.9]} 19... Rxc5
{[%clk 0:00:18.2]} 20. Bxc5 {[%clk 0:00:43.9]} 20... Qxc5 {[%clk 0:00:19.1]} 21.
Qb4 {[%clk 0:00:42.5]} 21... Qxb4 {[%clk 0:00:18.2]} 22. axb4 {[%clk 0:00:43.4]}
22... Nb3 {[%clk 0:00:19.1]} 23. Nd2 {[%clk 0:00:38.6]} 23... Nxd2 {[%clk
0:00:17.2]} 24. Rxd2 {[%clk 0:00:39.5]} 24... Bh6 {[%clk 0:00:15]} 25. Rc2
{[%clk 0:00:39.6]} 25... Ba4 {[%clk 0:00:14.6]} 26. Rc3 {[%clk 0:00:40]} 26...
Bd2 {[%clk 0:00:14.8]} 27. Rh3 {[%clk 0:00:36.7]} 27... Bxb4 {[%clk 0:00:15]}
28. Ra1 {[%clk 0:00:36.6]} 28... Rc8 {[%clk 0:00:13]} 29. Bf1 {[%clk 0:00:30.2]}
29... a5 {[%clk 0:00:13]} 30. g4 {[%clk 0:00:27.4]} 30... Bd7 {[%clk 0:00:12.8]}
31. Rg3 {[%clk 0:00:24.6]} 31... Bc5 {[%clk 0:00:08.9]} 32. h3 {[%clk
0:00:23.8]} 32... Bd4 {[%clk 0:00:09.1]} 33. Ra2 {[%clk 0:00:22.9]} 33... Na4
{[%clk 0:00:09.2]} 34. Rga3 {[%clk 0:00:21.8]} 34... Nxb2 {[%clk 0:00:09.3]} 35.
Rxa5 {[%clk 0:00:21.3]} 35... c3 {[%clk 0:00:09.8]} 36. Ra8 {[%clk 0:00:17.8]}
36... c2 {[%clk 0:00:09.1]} 37. Rxc8+ {[%clk 0:00:18.4]} 37... Bxc8 {[%clk
0:00:10]} 38. Ra1 {[%clk 0:00:19]} 38... Nd1 {[%clk 0:00:07.1]} 39. Rc1 {[%clk
0:00:18.7]} 39... Nxf2 {[%clk 0:00:07.5]} 40. Rxc2 {[%clk 0:00:17.9]} 40... Bd7
{[%clk 0:00:08.4]} 41. Kg2 {[%clk 0:00:17.7]} 41... Nxe4 {[%clk 0:00:07.9]} 42.
Bd3 {[%clk 0:00:15.6]} 42... Nc5 {[%clk 0:00:08.2]} 43. Bc4 {[%clk 0:00:16.1]}
43... Ba4 {[%clk 0:00:08.2]} 44. Ra2 {[%clk 0:00:15.7]} 44... Kf8 {[%clk
0:00:08.3]} 45. Kf3 {[%clk 0:00:15.4]} 45... Ke7 {[%clk 0:00:08.7]} 46. g5
{[%clk 0:00:16]} 46... Kd6 {[%clk 0:00:08.8]} 47. h4 {[%clk 0:00:15.7]} 47... b5
{[%clk 0:00:09.1]} 48. Bf1 {[%clk 0:00:15.2]} 48... Kxd5 {[%clk 0:00:09.5]} 49.
Ke2 {[%clk 0:00:15.3]} 49... e4 {[%clk 0:00:10.4]} 50. Bg2 {[%clk 0:00:16.2]}
50... Bb3 {[%clk 0:00:10.4]} 51. Ra8 {[%clk 0:00:15.7]} 51... Bc4+ {[%clk
0:00:11.3]} 52. Kd1 {[%clk 0:00:15.6]} 52... Bd3 {[%clk 0:00:10.8]} 53. Rd8+
{[%clk 0:00:15.6]} 53... Kc4 {[%clk 0:00:11.2]} 54. Rb8 {[%clk 0:00:16]} 54...
e3 {[%clk 0:00:11.2]} 55. Bc6 {[%clk 0:00:15.2]} 55... b4 {[%clk 0:00:10.6]} 56.
Bb5+ {[%clk 0:00:13.1]} 56... Kc3 {[%clk 0:00:10.9]} 57. Bxd3 {[%clk 0:00:12.9]}
57... Kxd3 {[%clk 0:00:11.8]} 58. Rxb4 {[%clk 0:00:12.2]} 58... e2+ {[%clk
0:00:11.5]} 0-1

[Event "*** Titled Tuesday Blitz"]
[Site "Chess.com"]
[Date "2021.02.02"]
[Round "8"]
[White "WiktoriaPOL"]
[Black "ViktoriyaTarasova"]
[Result "0-1"]
[WhiteElo "1994"]
[BlackElo "2284"]
[TimeControl "180+1"]
[EndTime "11:30:52 PST"]
[Termination "ViktoriyaTarasova won on time"]

1. e4 {[%clk 0:03:00.9]} 1... e5 {[%clk 0:02:43.4]} 2. Nf3 {[%clk 0:03:00.4]}
2... Nc6 {[%clk 0:02:42.1]} 3. d4 {[%clk 0:03:00.2]} 3... exd4 {[%clk
0:02:41.7]} 4. c3 {[%clk 0:03:00.3]} 4... dxc3 {[%clk 0:02:41.2]} 5. Nxc3 {[%clk
0:03:00.5]} 5... d6 {[%clk 0:02:39.7]} 6. Bc4 {[%clk 0:02:59.9]} 6... Nf6 {[%clk
0:02:40.3]} 7. Qb3 {[%clk 0:02:57.9]} 7... Qe7 {[%clk 0:02:31.1]} 8. Ng5 {[%clk
0:02:55.7]} 8... Ne5 {[%clk 0:02:28.6]} 9. Be2 {[%clk 0:02:42.6]} 9... h6 {[%clk
0:02:21.4]} 10. Nf3 {[%clk 0:02:38.8]} 10... Nxf3+ {[%clk 0:02:15.7]} 11. Bxf3
{[%clk 0:02:39]} 11... c6 {[%clk 0:02:16.2]} 12. O-O {[%clk 0:02:38.6]} 12...
Be6 {[%clk 0:02:16]} 13. Qb4 {[%clk 0:02:36.6]} 13... Qc7 {[%clk 0:02:13.5]} 14.
Bf4 {[%clk 0:02:35.1]} 14... Be7 {[%clk 0:02:13.2]} 15. Rfd1 {[%clk 0:02:34]}
15... Rd8 {[%clk 0:02:11.9]} 16. Rd2 {[%clk 0:02:27.6]} 16... O-O {[%clk
0:01:58.9]} 17. Rad1 {[%clk 0:02:26.4]} 17... Ne8 {[%clk 0:01:59.5]} 18. Rc1
{[%clk 0:02:05.5]} 18... Qb8 {[%clk 0:01:56.6]} 19. e5 {[%clk 0:01:58.8]} 19...
Rd7 {[%clk 0:01:13]} 20. Bxc6 {[%clk 0:01:39.8]} 20... dxe5 {[%clk 0:01:07.4]}
21. Qb5 {[%clk 0:01:31.4]} 21... Rxd2 {[%clk 0:00:53.9]} 22. Bxd2 {[%clk
0:01:27.7]} 22... Nd6 {[%clk 0:00:53.1]} 23. Qxe5 {[%clk 0:01:19.2]} 23... bxc6
{[%clk 0:00:52.9]} 24. Bf4 {[%clk 0:01:18.2]} 24... Qb7 {[%clk 0:00:36.4]} 25.
b3 {[%clk 0:01:13.7]} 25... Nf5 {[%clk 0:00:35.1]} 26. Ne4 {[%clk 0:01:07.5]}
26... Qc8 {[%clk 0:00:31.6]} 27. Nc5 {[%clk 0:01:04.5]} 27... Bxc5 {[%clk
0:00:29.4]} 28. Qxc5 {[%clk 0:01:03.9]} 28... Bd5 {[%clk 0:00:29.3]} 29. Qxa7
{[%clk 0:01:03.2]} 29... Re8 {[%clk 0:00:28.6]} 30. Qc5 {[%clk 0:00:59]} 30...
Qe6 {[%clk 0:00:28.5]} 31. h3 {[%clk 0:00:55.8]} 31... g5 {[%clk 0:00:26.2]} 32.
Bd2 {[%clk 0:00:53.1]} 32... Qe4 {[%clk 0:00:26.1]} 33. f3 {[%clk 0:00:46.1]}
33... Qd3 {[%clk 0:00:26]} 34. Bc3 {[%clk 0:00:43.1]} 34... Nh4 {[%clk
0:00:20.1]} 35. Qd6 {[%clk 0:00:38.3]} 35... Qg6 {[%clk 0:00:16.4]} 36. Qb4
{[%clk 0:00:31.8]} 36... Qe6 {[%clk 0:00:15.5]} 37. Re1 {[%clk 0:00:26.3]} 37...
Qd7 {[%clk 0:00:13.5]} 38. Rxe8+ {[%clk 0:00:25]} 38... Qxe8 {[%clk 0:00:13.5]}
39. Qd4 {[%clk 0:00:25.5]} 39... f6 {[%clk 0:00:06.4]} 40. Qxf6 {[%clk
0:00:23.1]} 40... Qe3+ {[%clk 0:00:06.2]} 41. Kh2 {[%clk 0:00:18.4]} 41... Nxf3+
{[%clk 0:00:05.5]} 42. Kg3 {[%clk 0:00:06.8]} 42... Nh4+ {[%clk 0:00:04.1]} 43.
Kh2 {[%clk 0:00:06.4]} 43... Nf3+ {[%clk 0:00:03.4]} 44. Kg3 {[%clk 0:00:05.9]}
44... Nh4+ {[%clk 0:00:03.2]} 45. Kh2 {[%clk 0:00:06.1]} 45... Qf4+ {[%clk
0:00:03]} 46. Qxf4 {[%clk 0:00:02.3]} 46... gxf4 {[%clk 0:00:03.9]} 47. g3
{[%clk 0:00:02.2]} 47... fxg3+ {[%clk 0:00:03.8]} 48. Kxg3 {[%clk 0:00:02.4]}
48... Nf5+ {[%clk 0:00:04.4]} 49. Kf4 {[%clk 0:00:02.1]} 49... Ne7 {[%clk
0:00:04.7]} 50. a4 {[%clk 0:00:02.1]} 50... Kf7 {[%clk 0:00:04.9]} 51. a5 {[%clk
0:00:02.3]} 51... c5 {[%clk 0:00:05]} 52. a6 {[%clk 0:00:02.4]} 52... Ba8 {[%clk
0:00:05]} 53. Ke5 {[%clk 0:00:02.4]} 53... Nc6+ {[%clk 0:00:04.3]} 54. Kd6
{[%clk 0:00:02.3]} 54... Nb8 {[%clk 0:00:04.5]} 55. a7 {[%clk 0:00:01.3]} 55...
Na6 {[%clk 0:00:05.1]} 0-1

[Event "*** Titled Tuesday Blitz"]
[Site "Chess.com"]
[Date "2021.02.02"]
[Round "8"]
[White "KetiGrant"]
[Black "HrvojeZagreb"]
[Result "1-0"]
[WhiteElo "2364"]
[BlackElo "2224"]
[TimeControl "180+1"]
[EndTime "11:30:53 PST"]
[Termination "KetiGrant won on time"]

1. e4 {[%clk 0:03:00.9]} 1... e6 {[%clk 0:02:59.6]} 2. d4 {[%clk 0:03:00.1]}
2... d5 {[%clk 0:02:59.7]} 3. Nc3 {[%clk 0:03:00.1]} 3... dxe4 {[%clk 0:03:00]}
4. Nxe4 {[%clk 0:02:59.5]} 4... Nd7 {[%clk 0:03:00.9]} 5. Nf3 {[%clk 0:02:56.5]}
5... Ngf6 {[%clk 0:03:01.4]} 6. Bg5 {[%clk 0:02:56.5]} 6... Be7 {[%clk 0:03:01]}
7. Bxf6 {[%clk 0:02:56.5]} 7... Nxf6 {[%clk 0:03:00.4]} 8. Bd3 {[%clk
0:02:57.2]} 8... Nxe4 {[%clk 0:02:54.9]} 9. Bxe4 {[%clk 0:02:58.1]} 9... c5
{[%clk 0:02:55.1]} 10. dxc5 {[%clk 0:02:53.5]} 10... Qa5+ {[%clk 0:02:44]} 11.
c3 {[%clk 0:02:52.6]} 11... Qxc5 {[%clk 0:02:43.8]} 12. O-O {[%clk 0:02:47.2]}
12... O-O {[%clk 0:02:42.5]} 13. Re1 {[%clk 0:02:41.2]} 13... a5 {[%clk
0:02:38.5]} 14. Qc2 {[%clk 0:02:34.4]} 14... h6 {[%clk 0:02:33.8]} 15. Rad1
{[%clk 0:02:32.2]} 15... a4 {[%clk 0:02:32.9]} 16. Ne5 {[%clk 0:02:26.8]} 16...
Bf6 {[%clk 0:02:10.3]} 17. Nd7 {[%clk 0:02:24.1]} 17... Bxd7 {[%clk 0:02:06.8]}
18. Rxd7 {[%clk 0:02:25]} 18... a3 {[%clk 0:02:04]} 19. Bxb7 {[%clk 0:02:01.3]}
19... Ra7 {[%clk 0:01:43.2]} 20. bxa3 {[%clk 0:01:24.5]} 20... Qxc3 {[%clk
0:01:08]} 21. Qxc3 {[%clk 0:01:07.8]} 21... Bxc3 {[%clk 0:01:08.9]} 22. Rc1
{[%clk 0:01:05.4]} 22... Rxa3 {[%clk 0:01:08.6]} 23. g3 {[%clk 0:00:57.9]} 23...
Bb2 {[%clk 0:00:54.9]} 24. Rc2 {[%clk 0:00:56]} 24... Bf6 {[%clk 0:00:44.4]} 25.
Kg2 {[%clk 0:00:55.2]} 25... g6 {[%clk 0:00:38]} 26. Be4 {[%clk 0:00:52.6]}
26... Kg7 {[%clk 0:00:32.7]} 27. h4 {[%clk 0:00:51]} 27... Rd8 {[%clk
0:00:28.7]} 28. Rb7 {[%clk 0:00:46.2]} 28... Bd4 {[%clk 0:00:23.5]} 29. Rcc7
{[%clk 0:00:41.4]} 29... Rf8 {[%clk 0:00:21.3]} 30. Rc2 {[%clk 0:00:32.6]} 30...
Rc3 {[%clk 0:00:15.1]} 31. Rd2 {[%clk 0:00:31]} 31... e5 {[%clk 0:00:14.1]} 32.
Bd5 {[%clk 0:00:26.4]} 32... Kf6 {[%clk 0:00:13.8]} 33. Re2 {[%clk 0:00:20.4]}
33... Rc5 {[%clk 0:00:13.5]} 34. Bb3 {[%clk 0:00:19.3]} 34... Rc3 {[%clk
0:00:09.6]} 35. Rd2 {[%clk 0:00:16.7]} 35... Rc5 {[%clk 0:00:09.1]} 36. Rd3
{[%clk 0:00:15.9]} 36... Rc3 {[%clk 0:00:08.8]} 37. Rd2 {[%clk 0:00:14.5]} 37...
h5 {[%clk 0:00:09]} 38. a4 {[%clk 0:00:12]} 38... Rc5 {[%clk 0:00:08.1]} 39. Rd3
{[%clk 0:00:11.1]} 39... Ra5 {[%clk 0:00:07.8]} 40. Rf3+ {[%clk 0:00:10.5]}
40... Kg7 {[%clk 0:00:06.9]} 41. Rfxf7+ {[%clk 0:00:10.4]} 41... Rxf7 {[%clk
0:00:07.3]} 42. Rxf7+ {[%clk 0:00:10.5]} 42... Kh6 {[%clk 0:00:07.9]} 43. Rb7
{[%clk 0:00:09.9]} 43... Ra7 {[%clk 0:00:05.5]} 44. Rb5 {[%clk 0:00:08]} 44...
Rc7 {[%clk 0:00:05.1]} 45. Kf3 {[%clk 0:00:07.1]} 45... Rc3+ {[%clk 0:00:05.1]}
46. Ke4 {[%clk 0:00:07.1]} 46... Bxf2 {[%clk 0:00:05]} 47. a5 {[%clk 0:00:06.7]}
47... Bxg3 {[%clk 0:00:05]} 48. a6 {[%clk 0:00:07.1]} 48... Rc7 {[%clk
0:00:04.8]} 49. Bd5 {[%clk 0:00:06.2]} 49... Ra7 {[%clk 0:00:04.5]} 50. Bb7
{[%clk 0:00:06.2]} 50... Bxh4 {[%clk 0:00:03.8]} 51. Kxe5 {[%clk 0:00:05.4]}
51... Bf2 {[%clk 0:00:03.7]} 52. Kf6 {[%clk 0:00:05]} 52... h4 {[%clk
0:00:03.8]} 53. Kf7 {[%clk 0:00:01.4]} 53... h3 {[%clk 0:00:03.3]} 54. Rb3
{[%clk 0:00:01.4]} 1-0